bitfinex/quotes_SOLUSD_20230111
["timestamp","ask_amount","ask_price","bid_price","bid_amount"]
[1673459891923,70.59,15.53,15.523,37.0]
[1673459892674,70.59,15.53,15.523,17.0]
[1673459894449,14.16,15.53,15.523,37.0]
[1673459895409,14.16,15.53,15.524,48.32]
[1673459895831,14.16,15.53,15.525,20.0]
[1673459896046,106.7441,15.536,15.525,20.0]
[1673459896239,106.7441,15.536,15.526,17.0]
[1673459896769,45.16273463,15.537,15.526,17.0]
[1673459897092,20.0,15.536,15.527,20.0]
[1673459898026,20.0,15.537,15.527,20.0]
[1673459899823,0.96,15.536,15.526,48.32]
[1673459907480,0.96,15.535,15.524,48.32]
[1673459907693,14.12,15.53,15.525,20.0]
[1673459907903,0.96,15.535,15.525,20.0]
[1673459908112,0.96,15.534,15.526,48.32]
[1673459909174,0.96,15.534,15.527,20.0]
[1673459909393,0.96,15.534,15.526,48.32]
[1673459909707,0.96,15.533,15.525,20.0]
[1673459909931,0.96,15.532,15.525,20.0]
[1673459910108,0.96,15.532,15.526,48.32]
[1673459910320,0.96,15.532,15.527,20.0]
[1673459921380,20.0,15.537,15.527,20.0]
[1673459921814,0.96,15.536,15.527,20.0]
[1673459922016,1.92,15.536,15.527,20.0]
[1673459928314,1.92,15.536,15.528,48.31]
[1673459928648,1.92,15.536,15.527,20.0]
[1673459929907,1.92,15.536,15.526,48.32]
[1673459934723,1.92,15.536,15.527,20.0]
[1673459935376,1.92,15.536,15.528,48.31]
[1673459949147,20.0,15.539,15.528,48.31]
[1673459949879,20.0,15.539,15.529,20.0]
[1673459950287,20.0,15.539,15.53,48.3]
[1673459950492,20.0,15.539,15.531,20.0]
[1673459951023,20.0,15.539,15.532,48.3]
[1673459952599,20.0,15.539,15.533,20.0]
[1673459953241,20.0,15.539,15.534,48.29]
[1673459954588,14.07,15.54,15.534,48.29]
[1673459954812,14.07,15.54,15.535,20.0]
[1673459955020,70.65,15.55,15.535,20.0]
[1673459955229,70.65,15.55,15.536,48.28]
[1673459955547,43.34264322,15.549,15.536,48.28]
[1673459955761,43.34264322,15.549,15.537,20.0]
[1673459955981,20.0,15.548,15.537,20.0]
[1673459956194,20.0,15.548,15.538,48.28]
[1673459957363,0.96,15.547,15.539,20.0]
[1673459957775,0.96,15.547,15.54,48.27]
[1673459957986,20.0,15.548,15.54,65.27]
[1673459958397,20.0,15.549,15.54,65.27]
[1673459962810,20.0,15.549,15.541,20.0]
[1673459963471,20.0,15.549,15.542,48.27]
[1673459968914,20.0,15.549,15.543,20.0]
[1673459970089,14.15,15.55,15.543,20.0]
[1673459970295,14.15,15.55,15.545,20.0]
[1673459970829,14.15,15.55,15.547,20.0]
[1673459971018,8.139,15.559,15.547,20.0]
[1673459971440,130.5465,15.56,15.547,20.0]
[1673459971966,130.5465,15.56,15.548,48.25]
[1673459972176,130.5465,15.56,15.549,20.0]
[1673459972177,187.0265,15.56,15.549,20.0]
[1673459972609,116.3965,15.56,15.549,20.0]
[1673459973332,1.92,15.559,15.549,20.0]
[1673459973770,21.92,15.559,15.549,20.0]
[1673459974485,20.0,15.559,15.549,20.0]
[1673459974720,20.0,15.559,15.55,48.24]
[1673459974915,20.0,15.558,15.55,48.24]
[1673459975135,20.0,15.558,15.548,48.25]
[1673459975345,43.34264322,15.558,15.547,48.25]
[1673459975535,20.0,15.557,15.547,48.25]
[1673459975747,20.0,15.557,15.547,68.25]
[1673459975952,1.92,15.556,15.547,68.25]
[1673459977552,1.92,15.556,15.548,20.0]
[1673459977974,1.92,15.556,15.549,48.24]
[1673459979346,20.0,15.557,15.55,20.0]
[1673459980083,20.0,15.559,15.55,20.0]
[1673459980488,0.96,15.558,15.55,20.0]
[1673459981238,0.96,15.558,15.549,48.24]
[1673459981551,0.96,15.557,15.548,48.25]
[1673459981743,0.96,15.556,15.547,48.25]
[1673459981955,0.96,15.556,15.547,68.25]
[1673459982282,0.96,15.556,15.548,20.0]
[1673459984890,0.96,15.556,15.549,48.24]
[1673459987625,0.96,15.556,15.548,48.25]
[1673459988173,0.96,15.556,15.547,48.25]
[1673459988368,0.96,15.556,15.548,17.0]
[1673459988896,0.96,15.556,15.549,48.24]
[1673459991001,0.96,15.556,15.546,165.2731]
[1673459991200,0.96,15.555,15.546,165.2731]
[1673459991401,0.96,15.554,15.546,165.2731]
[1673459994675,0.96,15.554,15.547,20.0]
[1673459995510,0.96,15.554,15.548,48.25]
[1673459995832,20.0,15.559,15.549,17.0]
[1673459996246,20.0,15.559,15.55,48.24]
[1673459997303,1.92,15.558,15.55,48.24]
[1673460002458,0.96,15.558,15.55,48.24]
[1673460002964,0.96,15.558,15.548,48.25]
[1673460003396,0.96,15.558,15.549,17.0]
[1673460004360,20.0,15.559,15.549,17.0]
[1673460004538,20.0,15.559,15.551,20.0]
[1673460005088,20.0,15.559,15.552,48.23]
[1673460005490,1.92,15.558,15.548,48.25]
[1673460005926,1.92,15.558,15.547,48.25]
[1673460007501,1.92,15.558,15.547,68.25]
[1673460007711,20.0,15.559,15.547,48.25]
[1673460008866,1.92,15.558,15.547,48.25]
[1673460009587,0.96,15.558,15.547,48.25]
[1673460009918,20.0,15.559,15.548,0.96]
[1673460010130,20.0,15.559,15.548,1.92]
[1673460010324,20.0,15.559,15.549,48.24]
[1673460010634,20.0,15.559,15.548,48.25]
[1673460011389,1.92,15.558,15.548,48.25]
[1673460011586,20.0,15.559,15.548,48.25]
[1673460012754,20.0,15.559,15.549,20.0]
[1673460013278,20.0,15.559,15.55,48.24]
[1673460013904,20.0,15.559,15.551,21.92]
[1673460014318,20.0,15.559,15.552,48.23]
[1673460014534,20.0,15.559,15.551,48.24]
[1673460014746,20.0,15.559,15.55,48.24]
[1673460016645,14.03,15.56,15.55,48.24]
[1673460016862,14.03,15.56,15.551,1.92]
[1673460017069,14.03,15.56,15.551,21.92]
[1673460017380,14.03,15.56,15.553,20.0]
[1673460017781,14.03,15.56,15.555,20.0]
[1673460018200,14.03,15.56,15.556,48.22]
[1673460018436,109.7284,15.568,15.555,20.0]
[1673460018625,13.97,15.56,15.555,20.0]
[1673460019383,20.0,15.567,15.557,20.0]
[1673460019795,70.48,15.57,15.558,65.22]
[1673460019796,20.0,15.568,15.558,65.22]
[1673460020010,70.48,15.57,15.558,65.22]
[1673460020011,20.0,15.569,15.558,65.22]
[1673460020845,20.0,15.569,15.559,21.92]
[1673460021262,20.0,15.569,15.56,65.21]
[1673460022212,20.0,15.569,15.561,20.0]
[1673460022419,20.0,15.569,15.562,17.0]
[1673460023577,20.0,15.569,15.56,48.21]
[1673460025370,0.96,15.568,15.56,48.21]
[1673460027366,20.0,15.569,15.56,48.21]
[1673460029793,10.0,15.569,15.561,20.0]
[1673460031871,14.02,15.57,15.561,20.0]
[1673460032105,14.02,15.57,15.562,48.2]
[1673460032296,14.02,15.57,15.563,20.0]
[1673460034717,123.0558,15.576,15.563,20.0]
[1673460034936,123.0558,15.576,15.563,136.375]
[1673460035657,123.0558,15.576,15.564,1.92]
[1673460035991,39.87597655,15.577,15.565,20.0]
[1673460036208,20.0,15.576,15.566,1.92]
[1673460036516,20.0,15.576,15.566,48.19]
[1673460036736,59.87597655,15.579,15.566,48.19]
[1673460037046,39.87597655,15.578,15.566,48.19]
[1673460037360,21.92,15.577,15.566,48.19]
[1673460038835,21.92,15.577,15.567,20.0]
[1673460039251,21.92,15.577,15.566,48.19]
[1673460039464,27.815,15.577,15.565,20.0]
[1673460039672,13.97,15.57,15.565,20.0]
[1673460045240,20.0,15.577,15.567,20.0]
[1673460046518,0.96,15.576,15.567,20.0]
[1673460048294,0.96,15.575,15.565,20.0]
[1673460048505,14.01,15.57,15.565,20.0]
[1673460051235,25.579,15.577,15.565,20.0]
[1673460051451,20.0,15.577,15.566,48.19]
[1673460052088,20.0,15.577,15.567,20.0]
[1673460052292,20.0,15.577,15.566,48.19]
[1673460052510,20.0,15.577,15.565,20.0]
[1673460052511,25.312,15.577,15.565,20.0]
[1673460053352,1.92,15.576,15.565,20.0]
[1673460053772,21.92,15.576,15.565,20.0]
[1673460053984,1.92,15.576,15.565,20.0]
[1673460054177,0.96,15.576,15.565,20.0]
[1673460054390,20.0,15.578,15.567,20.0]
[1673460054613,20.0,15.579,15.568,1.92]
[1673460054827,20.0,15.579,15.568,50.11]
[1673460055026,20.0,15.579,15.569,20.0]
[1673460055976,20.0,15.579,15.57,48.18]
[1673460057873,20.0,15.579,15.569,48.18]
[1673460058092,20.0,15.579,15.568,48.19]
[1673460058415,0.96,15.578,15.568,48.19]
[1673460060733,20.0,15.579,15.568,48.19]
[1673460060919,20.0,15.579,15.569,0.96]
[1673460061125,65.793267,15.58,15.57,0.96]
[1673460061342,65.793267,15.58,15.571,20.96]
[1673460061665,65.793267,15.58,15.572,0.96]
[1673460061878,65.793267,15.58,15.573,20.96]
[1673460062069,65.793267,15.58,15.574,17.96]
[1673460062282,65.793267,15.58,15.575,20.0]
[1673460062701,65.793267,15.58,15.576,17.0]
[1673460063331,65.793267,15.58,15.575,17.0]
[1673460063542,79.863267,15.58,15.575,17.0]
[1673460063752,79.863267,15.58,15.572,48.17]
[1673460064588,79.863267,15.58,15.571,68.18]
[1673460067332,79.863267,15.58,15.571,20.0]
[1673460068281,79.863267,15.58,15.572,17.0]
[1673460069350,65.793267,15.58,15.573,21.92]
[1673460069564,65.793267,15.58,15.573,70.09]
[1673460069888,65.793267,15.58,15.573,21.92]
[1673460070090,65.793267,15.58,15.574,65.17]
[1673460070295,65.793267,15.58,15.575,21.92]
[1673460070825,65.793267,15.58,15.576,17.0]
[1673460073355,65.793267,15.58,15.575,20.0]
[1673460073561,79.863267,15.58,15.573,20.0]
[1673460076314,79.863267,15.58,15.575,20.0]
[1673460076315,65.793267,15.58,15.575,20.0]
[1673460076931,65.793267,15.58,15.577,20.0]
[1673460077777,22.47,15.589,15.577,20.0]
[1673460077970,2.47,15.589,15.578,70.07]
[1673460078506,14.06,15.59,15.579,20.0]
[1673460078707,14.06,15.59,15.58,1.92]
[1673460078921,14.06,15.59,15.58,50.07]
[1673460079353,14.06,15.59,15.581,20.0]
[1673460079569,14.06,15.59,15.582,1.92]
[1673460079757,14.06,15.59,15.582,50.06]
[1673460079972,14.06,15.59,15.583,20.0]
[1673460080721,14.06,15.59,15.584,48.14]
[1673460081335,14.06,15.59,15.585,21.92]
[1673460081546,25.662782,15.596,15.585,20.0]
[1673460081774,24.662782,15.596,15.586,1.92]
[1673460082491,24.662782,15.596,15.586,18.92]
[1673460082708,24.662782,15.596,15.586,17.0]
[1673460083038,0.96,15.595,15.586,17.0]
[1673460083784,24.662782,15.596,15.586,17.0]
[1673460084292,0.96,15.595,15.586,17.0]
[1673460084495,24.662782,15.596,15.586,17.0]
[1673460084723,24.662782,15.596,15.587,70.05]
[1673460084915,24.662782,15.596,15.588,20.0]
[1673460085123,24.662782,15.596,15.589,18.92]
[1673460085332,24.662782,15.596,15.59,20.0]
[1673460085762,24.662782,15.596,15.591,48.11]
[1673460085973,24.662782,15.596,15.592,20.0]
[1673460086513,24.662782,15.596,15.593,17.0]
[1673460088812,14.07,15.6,15.593,17.0]
[1673460089235,20.0,15.609,15.594,20.0]
[1673460089448,20.0,15.608,15.594,21.92]
[1673460089648,20.0,15.608,15.595,48.1]
[1673460089862,45.64357,15.608,15.595,48.1]
[1673460090068,45.64357,15.608,15.596,18.92]
[1673460090274,45.64357,15.608,15.596,17.0]
[1673460090484,45.64357,15.608,15.597,1.92]
[1673460090708,45.64357,15.608,15.594,68.1]
[1673460091541,0.96,15.607,15.595,17.0]
[1673460091747,0.96,15.606,15.595,17.0]
[1673460091963,0.96,15.605,15.595,17.0]
[1673460092159,0.96,15.605,15.594,68.1]
[1673460092384,0.96,15.604,15.595,20.0]
[1673460093756,0.96,15.604,15.592,20.0]
[1673460094079,14.01,15.6,15.591,48.11]
[1673460094268,0.96,15.599,15.57,14.2]
[1673460094479,0.96,15.599,15.578,115.7446]
[1673460094480,14.07,15.59,15.578,115.7446]
[1673460094817,14.07,15.59,15.579,20.0]
[1673460095037,14.07,15.59,15.579,68.15]
[1673460095348,1.92,15.589,15.576,48.16]
[1673460095552,39.14496728,15.589,15.574,48.17]
[1673460095750,20.0,15.589,15.572,20.0]
[1673460095960,20.0,15.589,15.573,48.17]
[1673460096170,20.0,15.589,15.574,20.0]
[1673460096715,20.0,15.589,15.575,68.16]
[1673460097131,1.676,15.588,15.575,68.16]
[1673460098596,1.676,15.588,15.578,1.92]
[1673460098799,22.552,15.589,15.578,1.92]
[1673460102374,22.552,15.589,15.578,18.92]
[1673460103339,20.0,15.588,15.578,18.92]
[1673460103659,21.818,15.594,15.578,18.92]
[1673460103839,18.73,15.59,15.578,18.92]
[1673460104049,20.0,15.589,15.578,18.92]
[1673460104276,21.91,15.589,15.578,18.92]
[1673460107224,93.66,15.6,15.579,48.15]
[1673460107413,93.66,15.6,15.58,1.92]
[1673460107747,19.14496728,15.599,15.58,1.92]
[1673460107957,93.72,15.6,15.582,20.0]
[1673460108166,93.72,15.6,15.583,1.92]
[1673460108167,19.14496728,15.599,15.583,1.92]
[1673460108385,19.14496728,15.599,15.584,20.0]
[1673460108564,19.14496728,15.599,15.585,0.96]
[1673460109537,19.14496728,15.599,15.584,20.0]
[1673460109738,20.0,15.598,15.585,1.92]
[1673460110054,583.2,15.61,15.585,1.92]
[1673460110055,20.0,15.621,15.586,26.73813]
[1673460110249,187.43776535,15.636,15.587,8.6577]
[1673460110460,108.7138528,15.643,15.63,93.59]
[1673460110670,2.28290194,15.657,15.63,93.59]
[1673460110671,2.28290194,15.657,15.631,90.98873]
[1673460110881,18.20999624,15.65,15.634,193.5]
[1673460111089,18.20999624,15.65,15.64,18.59]
[1673460111316,18.20999624,15.65,15.641,0.96]
[1673460111541,74.02482824,15.656,15.641,48.92]
[1673460111747,74.02482824,15.656,15.642,26.71401]
[1673460111972,74.02482824,15.656,15.643,0.96]
[1673460112274,74.02482824,15.656,15.641,95.28853626]
[1673460112486,74.02482824,15.656,15.643,47.95]
[1673460112794,74.02482824,15.656,15.64,18.67]
[1673460113112,18.71,15.65,15.641,47.96]
[1673460113319,18.71,15.65,15.639,47.97]
[1673460113540,18.71,15.65,15.638,47.97]
[1673460113733,18.71,15.65,15.639,0.96]
[1673460113945,20.0,15.655,15.64,0.96]
[1673460114264,93.16979552,15.656,15.64,0.96]
[1673460114265,93.16979552,15.656,15.64,48.92]
[1673460114592,74.02482824,15.656,15.64,48.92]
[1673460114910,39.14496728,15.655,15.64,47.96]
[1673460115092,19.14496728,15.655,15.64,47.96]
[1673460115299,74.02482824,15.656,15.638,47.97]
[1673460115513,74.02482824,15.656,15.639,1.92]
[1673460115514,20.0,15.655,15.639,1.92]
[1673460115736,93.55,15.65,15.638,47.97]
[1673460115948,20.0,15.649,15.62,38.63]
[1673460116149,18.63,15.64,15.622,6.7226]
[1673460116585,18.63,15.64,15.624,20.0]
[1673460116986,18.63,15.64,15.625,48.01]
[1673460117955,130.7249,15.648,15.626,20.0]
[1673460118163,130.7249,15.648,15.627,6.72045]
[1673460118367,130.7249,15.648,15.627,73.86541728]
[1673460118776,20.0,15.647,15.628,20.0]
[1673460119009,130.7249,15.648,15.628,20.0]
[1673460119196,130.7249,15.648,15.63,20.0]
[1673460119407,130.7249,15.648,15.631,1.92]
[1673460119616,1.92,15.647,15.631,49.91]
[1673460119831,21.92,15.647,15.631,49.91]
[1673460120160,18.71,15.64,15.62,38.71]
[1673460120371,18.71,15.64,15.622,20.0]
[1673460120584,19.14496728,15.641,15.622,68.02]
[1673460120779,130.7249,15.648,15.624,20.0]
[1673460120996,130.7249,15.648,15.63,18.58]
[1673460121408,130.7249,15.648,15.631,47.99]
[1673460121832,130.7249,15.648,15.632,1.92]
[1673460122035,130.7249,15.648,15.631,47.99]
[1673460122355,36.14496728,15.647,15.627,48.0]
[1673460122773,20.0,15.645,15.626,48.01]
[1673460122977,1.92,15.644,15.628,20.0]
[1673460123188,19.14496728,15.644,15.628,20.0]
[1673460123404,130.7249,15.648,15.629,54.71959]
[1673460123622,110.7249,15.648,15.63,46.71916]
[1673460123824,110.7249,15.648,15.631,8.63873]
[1673460124035,110.7249,15.648,15.632,26.7183]
[1673460124242,110.7249,15.648,15.633,28.63787]
[1673460124453,110.7249,15.648,15.633,76.61787]
[1673460124658,110.7249,15.648,15.634,20.0]
[1673460124868,110.7249,15.648,15.635,1.92]
[1673460125091,186.43572824,15.656,15.636,26.71658]
[1673460125415,186.43572824,15.656,15.637,28.63615]
[1673460125602,186.43572824,15.656,15.637,76.60615]
[1673460125814,186.43572824,15.656,15.638,20.0]
[1673460126024,186.43572824,15.656,15.639,8.63529]
[1673460126233,186.43572824,15.656,15.64,6.71487]
[1673460126440,186.43572824,15.656,15.641,1.92]
[1673460126652,186.43572824,15.656,15.641,49.88]
[1673460127186,186.43572824,15.656,15.641,56.59444]
[1673460127410,186.43572824,15.656,15.641,8.63444]
[1673460127602,186.43572824,15.656,15.642,47.96]
[1673460127815,186.43572824,15.656,15.643,21.92]
[1673460128047,74.02482824,15.656,15.644,6.71315]
[1673460128258,74.02482824,15.656,15.645,20.96]
[1673460128452,74.02482824,15.656,15.645,28.63272]
[1673460128651,74.02482824,15.656,15.646,47.94]
[1673460128869,74.02482824,15.656,15.638,20.0]
[1673460129077,74.02482824,15.656,15.638,26.71572]
[1673460129311,74.02482824,15.656,15.639,47.97]
[1673460129621,93.16979552,15.656,15.64,6.71487]
[1673460129830,74.02482824,15.656,15.64,6.71487]
[1673460130022,74.02482824,15.656,15.642,20.0]
[1673460130232,74.02482824,15.656,15.643,26.71358]
[1673460130440,74.02482824,15.656,15.644,6.71315]
[1673460130763,74.02482824,15.656,15.646,20.0]
[1673460130975,74.02482824,15.656,15.647,28.63186]
[1673460131298,74.02482824,15.656,15.648,6.71143]
[1673460131508,74.02482824,15.656,15.649,1.92]
[1673460131719,74.02482824,15.656,15.649,49.86]
[1673460132335,74.02482824,15.656,15.648,54.65143]
[1673460133512,74.02482824,15.656,15.647,67.94]
[1673460134124,74.02482824,15.656,15.647,20.0]
[1673460134334,74.02482824,15.656,15.644,20.0]
[1673460134754,74.02482824,15.656,15.645,20.0]
[1673460135298,74.02482824,15.656,15.643,47.95]
[1673460135484,74.02482824,15.656,15.642,20.0]
[1673460136128,74.02482824,15.656,15.642,67.96]
[1673460136966,74.02482824,15.656,15.643,6.71358]
[1673460137603,74.02482824,15.656,15.645,20.0]
[1673460137816,74.02482824,15.656,15.646,20.96]
[1673460138027,74.02482824,15.656,15.647,0.96]
[1673460139279,74.02482824,15.656,15.648,47.94]
[1673460139501,74.02482824,15.656,15.649,28.631]
[1673460139808,74.02482824,15.656,15.65,6.71057]
[1673460140003,74.02482824,15.656,15.65,54.64057]
[1673460140219,74.02482824,15.656,15.651,21.92]
[1673460140751,74.02482824,15.656,15.652,47.93]
[1673460141070,74.02482824,15.656,15.653,1.92]
[1673460142633,74.02482824,15.656,15.651,47.93]
[1673460143151,74.02482824,15.656,15.639,20.0]
[1673460143363,74.02482824,15.656,15.646,20.0]
[1673460143900,74.02482824,15.656,15.646,67.94]
[1673460144108,74.02482824,15.656,15.646,20.0]
[1673460144943,74.02482824,15.656,15.646,67.94]
[1673460145486,74.02482824,15.656,15.646,20.0]
[1673460145685,74.02482824,15.656,15.644,20.0]
[1673460146433,74.02482824,15.656,15.645,20.0]
[1673460146619,74.02482824,15.656,15.646,20.0]
[1673460147042,74.02482824,15.656,15.647,47.94]
[1673460147685,74.02482824,15.656,15.648,21.92]
[1673460148107,74.02482824,15.656,15.65,20.0]
[1673460148638,74.02482824,15.656,15.652,20.0]
[1673460148851,74.02482824,15.656,15.653,1.92]
[1673460149788,74.02482824,15.656,15.651,6.71015]
[1673460150007,74.02482824,15.656,15.63,20.0]
[1673460150214,74.02482824,15.656,15.644,19.14496728]
[1673460150622,74.02482824,15.656,15.649,47.94]
[1673460150835,74.02482824,15.656,15.649,54.651]
[1673460151267,74.02482824,15.656,15.65,21.92]
[1673460151483,74.02482824,15.656,15.651,6.71015]
[1673460151687,74.02482824,15.656,15.652,1.92]
[1673460152435,74.02482824,15.656,15.652,21.92]
[1673460153073,74.02482824,15.656,15.651,54.64015]
[1673460153386,74.02482824,15.656,15.651,6.71015]
[1673460153570,74.02482824,15.656,15.651,54.64015]
[1673460153990,74.02482824,15.656,15.651,6.71015]
[1673460154425,74.02482824,15.656,15.652,1.92]
[1673460157353,74.02482824,15.656,15.651,6.71015]
[1673460157781,74.02482824,15.656,15.647,36.94414319]
[1673460157999,20.0,15.655,15.647,36.94414319]
[1673460158214,20.0,15.655,15.64,20.0]
[1673460158416,20.0,15.655,15.641,67.96]
[1673460158622,74.02482824,15.656,15.641,67.96]
[1673460158833,74.02482824,15.656,15.642,19.14496728]
[1673460159375,20.0,15.655,15.641,67.96]
[1673460159579,20.0,15.655,15.641,20.0]
[1673460160305,74.02482824,15.656,15.641,20.0]
[1673460160844,74.02482824,15.656,15.642,47.96]
[1673460161365,74.02482824,15.656,15.641,20.0]
[1673460161766,20.0,15.655,15.641,20.0]
[1673460161980,74.02482824,15.656,15.641,20.0]
[1673460162203,74.02482824,15.656,15.642,47.96]
[1673460162393,74.02482824,15.656,15.643,20.0]
[1673460162817,74.02482824,15.656,15.644,48.91]
[1673460163239,74.02482824,15.656,15.645,0.96]
[1673460163450,20.0,15.655,15.645,0.96]
[1673460163872,20.0,15.655,15.641,20.0]
[1673460164084,185.47052824,15.656,15.642,48.92]
[1673460164291,185.47052824,15.656,15.642,49.88]
[1673460165352,20.0,15.655,15.641,47.96]
[1673460165775,20.0,15.655,15.632,20.0]
[1673460166184,185.47052824,15.656,15.637,47.97]
[1673460166388,20.0,15.655,15.638,20.0]
[1673460166603,20.0,15.655,15.638,39.14496728]
[1673460166821,185.47052824,15.656,15.639,48.93]
[1673460167026,185.47052824,15.656,15.64,20.96]
[1673460167233,185.47052824,15.656,15.641,0.96]
[1673460167441,20.0,15.655,15.641,48.92]
[1673460167858,20.0,15.655,15.641,0.96]
[1673460168298,20.0,15.655,15.64,20.96]
[1673460168703,20.0,15.655,15.639,47.97]
[1673460168704,185.47052824,15.656,15.641,47.96]
[1673460168918,185.47052824,15.656,15.64,47.96]
[1673460169130,185.47052824,15.656,15.639,47.97]
[1673460169343,20.0,15.655,15.639,47.97]
[1673460169879,20.0,15.655,15.64,1.92]
[1673460170085,185.47052824,15.656,15.64,1.92]
[1673460170298,185.47052824,15.656,15.641,47.96]
[1673460170508,185.47052824,15.656,15.642,1.92]
[1673460170918,185.47052824,15.656,15.643,47.95]
[1673460171550,185.47052824,15.656,15.63,45.92]
[1673460171551,1.92,15.655,15.63,45.92]
[1673460171763,20.0,15.653,15.634,20.0]
[1673460171976,111.3692,15.652,15.634,20.0]
[1673460172176,109.4492,15.652,15.635,20.0]
[1673460172390,109.4492,15.652,15.636,20.0]
[1673460172599,109.4492,15.652,15.636,67.98]
[1673460173434,109.4492,15.652,15.637,1.92]
[1673460173965,109.4492,15.652,15.638,47.97]
[1673460174184,20.0,15.651,15.638,47.97]
[1673460174378,25.99,15.65,15.623,396.1]
[1673460174592,47.91,15.65,15.623,396.1]
[1673460174810,20.0,15.649,15.628,39.14496728]
[1673460175119,20.0,15.647,15.63,47.99]
[1673460175332,20.0,15.647,15.629,48.0]
[1673460175333,1.92,15.646,15.629,48.0]
[1673460175542,8.68744,15.646,15.629,48.0]
[1673460175757,8.68744,15.646,15.628,48.0]
[1673460177004,6.76744,15.645,15.627,48.0]
[1673460177214,25.94,15.64,15.627,48.0]
[1673460177442,25.94,15.64,15.626,20.0]
[1673460177754,137.4482,15.64,15.626,20.0]
[1673460177952,137.4482,15.64,15.627,48.0]
[1673460179014,1.92,15.639,15.625,48.01]
[1673460179330,21.92,15.639,15.626,20.0]
[1673460179548,21.92,15.639,15.621,48.02]
[1673460179549,28.68744,15.639,15.621,48.02]
[1673460179760,20.0,15.638,15.621,48.02]
[1673460179948,20.0,15.638,15.619,19.14496728]
[1673460180158,20.0,15.638,15.622,19.14496728]
[1673460180372,137.4482,15.64,15.622,19.14496728]
[1673460180701,137.4482,15.64,15.624,20.0]
[1673460180702,111.5082,15.64,15.624,20.0]
[1673460180900,111.5082,15.64,15.625,18.92]
[1673460181106,111.5082,15.64,15.626,20.0]
[1673460181321,111.5082,15.64,15.627,18.92]
[1673460181531,111.5082,15.64,15.627,66.92]
[1673460181742,111.5082,15.64,15.627,65.0]
[1673460183012,111.5082,15.64,15.627,48.0]
[1673460183329,21.92,15.639,15.622,48.02]
[1673460183541,41.92,15.639,15.622,48.02]
[1673460183853,41.92,15.639,15.621,20.0]
[1673460184773,28.68744,15.639,15.621,20.0]
[1673460184988,26.76744,15.639,15.621,20.0]